[Event "Titled Tuesday Blitz November 07 Late 2023"]
[White "Harriott, Tyrell"]
[Black "Thomforde-Toates, Noah"]
[WhiteFideId "2086484"]
[BlackFideId "30951992"]
[WhiteElo "2354"]
[BlackElo "2650"]
[Result "1-0"]
[Round "4"]
[TimeControl "180+1"]
[Date "2023.11.07"]
[WhiteClock "0:00:21"]
[BlackClock "0:00:10"]
[Board "74"]

1. d4 {[%clk 0:03:00]}  Nf6 {[%clk 0:02:46]} 2. e3 {[%clk 0:03:01]}  g6 {[%clk 0:02:43]} 3. Bd3 {[%clk 0:03:02]}  d6 {[%clk 0:02:42]} 4. f4 {[%clk 0:03:03]}  Nbd7 {[%clk 0:02:29]} 5. Nf3 {[%clk 0:03:03]}  c5 {[%clk 0:02:29]} 6. O-O {[%clk 0:03:03]}  Bg7 {[%clk 0:02:29]} 7. Nbd2 {[%clk 0:03:01]}  b6 {[%clk 0:02:29]} 8. c3 {[%clk 0:03:01]}  Bb7 {[%clk 0:02:29]} 9. Qe1 {[%clk 0:03:01]}  Qc7 {[%clk 0:02:27]} 10. e4 {[%clk 0:02:58]}  e5 {[%clk 0:02:24]} 11. fxe5 {[%clk 0:02:57]}  dxe5 {[%clk 0:02:23]} 12. d5 {[%clk 0:02:58]}  O-O-O {[%clk 0:02:16]} 13. Qe2 {[%clk 0:02:56]}  h6 {[%clk 0:02:11]} 14. a4 {[%clk 0:02:55]}  Ne8 {[%clk 0:02:10]} 15. Nc4 {[%clk 0:02:52]}  Nd6 {[%clk 0:02:09]} 16. Nfd2 {[%clk 0:02:47]}  f6 {[%clk 0:02:00]} 17. b4 {[%clk 0:02:42]}  Rde8 {[%clk 0:01:57]} 18. Ba3 {[%clk 0:02:38]}  Rhf8 {[%clk 0:01:47]} 19. Rab1 {[%clk 0:02:18]}  Nxc4 {[%clk 0:01:37]} 20. Nxc4 {[%clk 0:02:16]}  f5 {[%clk 0:01:32]} 21. d6 {[%clk 0:02:08]}  Qd8 {[%clk 0:01:19]} 22. exf5 {[%clk 0:02:05]}  e4 {[%clk 0:01:19]} 23. Bc2 {[%clk 0:01:58]}  Bxc3 {[%clk 0:01:15]} 24. bxc5 {[%clk 0:01:57]}  Bd4+ {[%clk 0:01:16]} 25. Kh1 {[%clk 0:01:57]}  Bxc5 {[%clk 0:01:12]} 26. fxg6 {[%clk 0:01:49]}  Qg5 {[%clk 0:01:04]} 27. Rxf8 {[%clk 0:01:43]}  Rxf8 {[%clk 0:01:01]} 28. Bxe4 {[%clk 0:01:38]}  Qf4 {[%clk 0:00:36]} 29. Bxb7+ {[%clk 0:01:32]}  Kxb7 {[%clk 0:00:37]} 30. Na5+ {[%clk 0:01:28]}  Kb8 {[%clk 0:00:28]} 31. g7 {[%clk 0:01:01]}  Rg8 {[%clk 0:00:25]} 32. Qe6 {[%clk 0:00:53]}  Nf6 {[%clk 0:00:18]} 33. Bxc5 {[%clk 0:00:42]}  Rxg7 {[%clk 0:00:13]} 34. Nc6+ {[%clk 0:00:25]}  Kb7 {[%clk 0:00:13]} 35. Ne7 {[%clk 0:00:23]}  Ne4 {[%clk 0:00:10]} 36. Qc8# {[%clk 0:00:21]} 1-0


[Site "https://www.chess.com"]

[Event "Titled Tuesday Blitz November 07 Late 2023"]
[White "Maect19"]
[Black "Ehlvest, Jaan"]
[BlackFideId "4500016"]
[WhiteElo "2348"]
[BlackElo "2641"]
[Result "0-1"]
[Round "4"]
[TimeControl "180+1"]
[Date "2023.11.07"]
[WhiteClock "0:01:35"]
[BlackClock "0:01:48"]
[Board "75"]

1. d4 {[%clk 0:03:00]}  Nf6 {[%clk 0:02:54]} 2. Nf3 {[%clk 0:03:00]}  e6 {[%clk 0:02:53]} 3. e3 {[%clk 0:03:00]}  c5 {[%clk 0:02:52]} 4. Bd3 {[%clk 0:02:59]}  b6 {[%clk 0:02:50]} 5. O-O {[%clk 0:02:59]}  Bb7 {[%clk 0:02:50]} 6. Nbd2 {[%clk 0:02:58]}  d5 {[%clk 0:02:49]} 7. b3 {[%clk 0:02:58]}  Nc6 {[%clk 0:02:49]} 8. Bb2 {[%clk 0:02:58]}  Bd6 {[%clk 0:02:48]} 9. a3 {[%clk 0:02:58]}  O-O {[%clk 0:02:47]} 10. Ne5 {[%clk 0:02:57]}  Ne7 {[%clk 0:02:46]} 11. f4 {[%clk 0:02:55]}  Qc7 {[%clk 0:02:41]} 12. c4 {[%clk 0:02:49]}  Rad8 {[%clk 0:02:28]} 13. Qe2 {[%clk 0:02:43]}  Ne4 {[%clk 0:02:12]} 14. Bxe4 {[%clk 0:02:34]}  dxe4 {[%clk 0:02:11]} 15. Rad1 {[%clk 0:02:25]}  f6 {[%clk 0:02:10]} 16. Qg4 {[%clk 0:02:16]}  Nf5 {[%clk 0:02:09]} 17. Rde1 {[%clk 0:01:59]}  fxe5 {[%clk 0:01:59]} 18. fxe5 {[%clk 0:01:56]}  Bxe5 {[%clk 0:01:59]} 19. Nxe4 {[%clk 0:01:51]}  Bxh2+ {[%clk 0:01:53]} 20. Kh1 {[%clk 0:01:50]}  Bxe4 {[%clk 0:01:53]} 21. dxc5 {[%clk 0:01:35]}  Ng3+ {[%clk 0:01:48]} 0-1


[Site "https://www.chess.com"]

[Event "Titled Tuesday Blitz November 07 Late 2023"]
[White "Pavlidou, Ekaterini"]
[Black "Amburgy, Ryan"]
[WhiteFideId "4213262"]
[BlackFideId "30924820"]
[WhiteElo "2347"]
[BlackElo "2641"]
[Result "0-1"]
[Round "4"]
[TimeControl "180+1"]
[Date "2023.11.07"]
[WhiteClock "0:00:30"]
[BlackClock "0:01:21"]
[Board "76"]

1. d4 {[%clk 0:03:00]}  Nf6 {[%clk 0:02:59]} 2. c4 {[%clk 0:03:00]}  e6 {[%clk 0:02:59]} 3. Nc3 {[%clk 0:02:58]}  Bb4 {[%clk 0:02:59]} 4. e3 {[%clk 0:02:58]}  O-O {[%clk 0:02:59]} 5. Bd2 {[%clk 0:02:58]}  b6 {[%clk 0:02:57]} 6. Nf3 {[%clk 0:02:58]}  Bb7 {[%clk 0:02:57]} 7. Bd3 {[%clk 0:02:58]}  d6 {[%clk 0:02:54]} 8. a3 {[%clk 0:02:57]}  Bxc3 {[%clk 0:02:54]} 9. Bxc3 {[%clk 0:02:57]}  Nbd7 {[%clk 0:02:54]} 10. Qc2 {[%clk 0:02:57]}  Qe7 {[%clk 0:02:52]} 11. Nd2 {[%clk 0:02:46]}  Rac8 {[%clk 0:02:45]} 12. e4 {[%clk 0:02:40]}  e5 {[%clk 0:02:42]} 13. d5 {[%clk 0:02:37]}  c6 {[%clk 0:02:38]} 14. b4 {[%clk 0:02:30]}  cxd5 {[%clk 0:02:26]} 15. exd5 {[%clk 0:02:29]}  e4 {[%clk 0:02:24]} 16. Be2 {[%clk 0:02:22]}  e3 {[%clk 0:02:07]} 17. Nf3 {[%clk 0:02:00]}  exf2+ {[%clk 0:01:54]} 18. Kf1 {[%clk 0:01:58]}  Bxd5 {[%clk 0:01:46]} 19. cxd5 {[%clk 0:01:30]}  Nxd5 {[%clk 0:01:47]} 20. Qd2 {[%clk 0:01:18]}  Nxc3 {[%clk 0:01:45]} 21. Nd4 {[%clk 0:01:11]}  Nf6 {[%clk 0:01:35]} 22. Nf5 {[%clk 0:01:00]}  Qe5 {[%clk 0:01:25]} 23. Bd3 {[%clk 0:00:57]}  Nce4 {[%clk 0:01:20]} 24. Bxe4 {[%clk 0:00:30]}  Nxe4 {[%clk 0:01:21]} 0-1


[Site "https://www.chess.com"]

[Event "Titled Tuesday Blitz November 07 Late 2023"]
[White "Garrido, Denis"]
[Black "Aarav Dengla"]
[WhiteFideId "601217"]
[BlackFideId "45059756"]
[WhiteElo "2325"]
[BlackElo "2632"]
[Result "0-1"]
[Round "4"]
[TimeControl "180+1"]
[Date "2023.11.07"]
[WhiteClock "0:00:12"]
[BlackClock "0:00:12"]
[Board "77"]

1. e4 {[%clk 0:03:00]}  c5 {[%clk 0:02:58]} 2. Nf3 {[%clk 0:03:01]}  d6 {[%clk 0:02:59]} 3. d4 {[%clk 0:03:01]}  cxd4 {[%clk 0:03:00]} 4. Nxd4 {[%clk 0:03:02]}  Nf6 {[%clk 0:03:00]} 5. Nc3 {[%clk 0:03:02]}  a6 {[%clk 0:03:00]} 6. Nf3 {[%clk 0:03:02]}  Nbd7 {[%clk 0:02:49]} 7. a4 {[%clk 0:03:00]}  Nc5 {[%clk 0:02:46]} 8. e5 {[%clk 0:02:59]}  Ng4 {[%clk 0:02:38]} 9. exd6 {[%clk 0:02:58]}  exd6 {[%clk 0:02:39]} 10. Bg5 {[%clk 0:02:52]}  Be7 {[%clk 0:02:37]} 11. Qe2 {[%clk 0:02:51]}  Be6 {[%clk 0:02:34]} 12. Bxe7 {[%clk 0:02:50]}  Qxe7 {[%clk 0:02:35]} 13. h3 {[%clk 0:02:46]}  Nf6 {[%clk 0:02:35]} 14. Nd4 {[%clk 0:02:45]}  O-O {[%clk 0:02:35]} 15. Nxe6 {[%clk 0:02:44]}  Nxe6 {[%clk 0:02:33]} 16. O-O-O {[%clk 0:02:34]}  Rac8 {[%clk 0:02:28]} 17. g4 {[%clk 0:02:30]}  Qd7 {[%clk 0:02:21]} 18. g5 {[%clk 0:02:14]}  Nxg5 {[%clk 0:02:12]} 19. Rg1 {[%clk 0:02:15]}  Ne6 {[%clk 0:02:12]} 20. Qf3 {[%clk 0:01:50]}  Kh8 {[%clk 0:01:58]} 21. Re1 {[%clk 0:01:29]}  d5 {[%clk 0:01:55]} 22. Bd3 {[%clk 0:01:27]}  Rxc3 {[%clk 0:01:46]} 23. bxc3 {[%clk 0:01:26]}  Qxa4 {[%clk 0:01:46]} 24. Qg3 {[%clk 0:01:18]}  Rg8 {[%clk 0:01:12]} 25. Qe5 {[%clk 0:01:09]}  Qh4 {[%clk 0:00:50]} 26. Rg3 {[%clk 0:00:57]}  Re8 {[%clk 0:00:36]} 27. Reg1 {[%clk 0:00:46]}  Nf4 {[%clk 0:00:25]} 28. Qd4 {[%clk 0:00:30]}  Qh6 {[%clk 0:00:19]} 29. Kb2 {[%clk 0:00:23]}  Ne6 {[%clk 0:00:16]} 30. Qb4 {[%clk 0:00:18]}  Qf4 {[%clk 0:00:16]} 31. Qxf4 {[%clk 0:00:14]}  Nxf4 {[%clk 0:00:17]} 32. Rxg7 {[%clk 0:00:14]}  Rf8 {[%clk 0:00:16]} 33. R7g5 {[%clk 0:00:14]}  Nxh3 {[%clk 0:00:15]} 34. Rf5 {[%clk 0:00:13]}  Nxg1 {[%clk 0:00:14]} 35. Rxf6 {[%clk 0:00:13]}  Kg7 {[%clk 0:00:13]} 36. Rd6 {[%clk 0:00:12]}  Nh3 {[%clk 0:00:12]} 37. Rxd5 {[%clk 0:00:13]}  Nxf2 {[%clk 0:00:11]} 38. Rg5+ {[%clk 0:00:12]}  Kh6 {[%clk 0:00:09]} 39. Rd5 {[%clk 0:00:11]}  Nxd3+ {[%clk 0:00:10]} 40. cxd3 {[%clk 0:00:12]}  f5 {[%clk 0:00:11]} 41. Rd7 {[%clk 0:00:13]}  f4 {[%clk 0:00:12]} 42. Rd6+ {[%clk 0:00:10]}  Kg5 {[%clk 0:00:11]} 43. Rd5+ {[%clk 0:00:10]}  Kg4 {[%clk 0:00:12]} 44. Rd7 {[%clk 0:00:11]}  f3 {[%clk 0:00:12]} 45. Rxh7 {[%clk 0:00:12]}  f2 {[%clk 0:00:12]} 46. Rg7+ {[%clk 0:00:12]}  Kf3 {[%clk 0:00:12]} 0-1


[Site "https://www.chess.com"]

[Event "Titled Tuesday Blitz November 07 Late 2023"]
[White "reevecanada"]
[Black "Ruge, Edison"]
[BlackFideId "4401000"]
[WhiteElo "2632"]
[BlackElo "2301"]
[Result "1-0"]
[Round "4"]
[TimeControl "180+1"]
[Date "2023.11.07"]
[WhiteClock "0:01:11"]
[BlackClock "0:00:00"]
[Board "78"]

1. e4 {[%clk 0:03:00]}  e5 {[%clk 0:02:58]} 2. Nf3 {[%clk 0:03:00]}  Nc6 {[%clk 0:02:56]} 3. d4 {[%clk 0:03:01]}  d6 {[%clk 0:02:54]} 4. Bb5 {[%clk 0:02:59]}  exd4 {[%clk 0:02:52]} 5. Nxd4 {[%clk 0:02:59]}  Bd7 {[%clk 0:02:53]} 6. Bxc6 {[%clk 0:02:58]}  bxc6 {[%clk 0:02:53]} 7. c4 {[%clk 0:02:58]}  Nf6 {[%clk 0:02:50]} 8. Nc3 {[%clk 0:02:58]}  Be7 {[%clk 0:02:51]} 9. O-O {[%clk 0:02:58]}  O-O {[%clk 0:02:50]} 10. b3 {[%clk 0:02:57]}  c5 {[%clk 0:02:50]} 11. Nde2 {[%clk 0:02:56]}  Bc6 {[%clk 0:02:50]} 12. f3 {[%clk 0:02:56]}  Nd7 {[%clk 0:02:50]} 13. Bb2 {[%clk 0:02:55]}  Bf6 {[%clk 0:02:50]} 14. Qd2 {[%clk 0:02:55]}  Re8 {[%clk 0:02:49]} 15. Rad1 {[%clk 0:02:55]}  Bg5 {[%clk 0:02:38]} 16. Qc2 {[%clk 0:02:54]}  Be3+ {[%clk 0:02:32]} 17. Kh1 {[%clk 0:02:53]}  Qh4 {[%clk 0:02:33]} 18. Ng3 {[%clk 0:02:50]}  Bf4 {[%clk 0:02:26]} 19. Nce2 {[%clk 0:02:43]}  Be5 {[%clk 0:02:17]} 20. Bxe5 {[%clk 0:02:38]}  Rxe5 {[%clk 0:02:13]} 21. Nf5 {[%clk 0:02:37]}  Qf6 {[%clk 0:02:04]} 22. Neg3 {[%clk 0:02:36]}  g6 {[%clk 0:02:04]} 23. Ne3 {[%clk 0:02:35]}  h5 {[%clk 0:02:02]} 24. a3 {[%clk 0:02:31]}  Rae8 {[%clk 0:02:01]} 25. b4 {[%clk 0:02:30]}  cxb4 {[%clk 0:01:57]} 26. axb4 {[%clk 0:02:29]}  Nf8 {[%clk 0:01:37]} 27. Qa2 {[%clk 0:02:27]}  Qf4 {[%clk 0:01:33]} 28. Rd3 {[%clk 0:02:17]}  h4 {[%clk 0:01:29]} 29. Ne2 {[%clk 0:02:16]}  Qh6 {[%clk 0:01:04]} 30. Ng4 {[%clk 0:02:13]}  Qg7 {[%clk 0:01:05]} 31. Nxe5 {[%clk 0:02:12]}  Rxe5 {[%clk 0:01:05]} 32. Qxa7 {[%clk 0:02:11]}  f5 {[%clk 0:01:03]} 33. Nc3 {[%clk 0:01:50]}  h3 {[%clk 0:01:02]} 34. gxh3 {[%clk 0:01:48]}  fxe4 {[%clk 0:01:03]} 35. fxe4 {[%clk 0:01:48]}  Rxe4 {[%clk 0:00:59]} 36. Nxe4 {[%clk 0:01:47]}  Bxe4+ {[%clk 0:00:59]} 37. Rdf3 {[%clk 0:01:48]}  Ne6 {[%clk 0:00:55]} 38. Kg1 {[%clk 0:01:45]}  Bxf3 {[%clk 0:00:52]} 39. Rxf3 {[%clk 0:01:45]}  Qe5 {[%clk 0:00:42]} 40. Qe3 {[%clk 0:01:43]}  Ng5 {[%clk 0:00:35]} 41. Rg3 {[%clk 0:01:39]}  Ne4 {[%clk 0:00:31]} 42. Rxg6+ {[%clk 0:01:38]}  Kf7 {[%clk 0:00:32]} 43. Rg4 {[%clk 0:01:37]}  Qa1+ {[%clk 0:00:27]} 44. Kg2 {[%clk 0:01:36]}  Qb2+ {[%clk 0:00:25]} 45. Kf3 {[%clk 0:01:36]}  Nd2+ {[%clk 0:00:24]} 46. Kg2 {[%clk 0:01:15]}  Nxc4+ {[%clk 0:00:20]} 47. Qf2+ {[%clk 0:01:14]}  Qxf2+ {[%clk 0:00:20]} 48. Kxf2 {[%clk 0:01:15]}  Ne5 {[%clk 0:00:20]} 49. Rg3 {[%clk 0:01:14]}  d5 {[%clk 0:00:16]} 50. h4 {[%clk 0:01:13]}  d4 {[%clk 0:00:15]} 51. h5 {[%clk 0:01:14]}  Nc6 {[%clk 0:00:12]} 52. h6 {[%clk 0:01:13]}  Nxb4 {[%clk 0:00:11]} 53. h7 {[%clk 0:01:12]}  d3 {[%clk 0:00:00]} 54. h8=Q {[%clk 0:01:11]} 1-0


[Site "https://www.chess.com"]

[Event "Titled Tuesday Blitz November 07 Late 2023"]
[White "Ismagilov, Damir"]
[Black "Samarth J Rao"]
[WhiteFideId "34199982"]
[BlackFideId "46652370"]
[WhiteElo "2630"]
[BlackElo "2098"]
[Result "0-1"]
[Round "4"]
[TimeControl "180+1"]
[Date "2023.11.07"]
[WhiteClock "0:01:06"]
[BlackClock "0:00:25"]
[Board "79"]

1. d4 {[%clk 0:02:59]}  d5 {[%clk 0:02:40]} 2. Bf4 {[%clk 0:02:58]}  Nf6 {[%clk 0:02:40]} 3. e3 {[%clk 0:02:58]}  e6 {[%clk 0:02:36]} 4. Nd2 {[%clk 0:02:58]}  Nbd7 {[%clk 0:02:34]} 5. Bd3 {[%clk 0:02:57]}  Be7 {[%clk 0:02:33]} 6. c3 {[%clk 0:02:56]}  c5 {[%clk 0:02:31]} 7. h3 {[%clk 0:02:56]}  O-O {[%clk 0:02:30]} 8. Ngf3 {[%clk 0:02:56]}  c4 {[%clk 0:02:29]} 9. Bc2 {[%clk 0:02:55]}  b5 {[%clk 0:02:29]} 10. O-O {[%clk 0:02:49]}  Bb7 {[%clk 0:02:28]} 11. a3 {[%clk 0:02:48]}  a5 {[%clk 0:02:27]} 12. Qe2 {[%clk 0:02:48]}  b4 {[%clk 0:02:15]} 13. e4 {[%clk 0:02:47]}  Nxe4 {[%clk 0:01:56]} 14. Nxe4 {[%clk 0:02:40]}  dxe4 {[%clk 0:01:53]} 15. Bxe4 {[%clk 0:02:40]}  Bxe4 {[%clk 0:01:53]} 16. Qxe4 {[%clk 0:02:41]}  Nf6 {[%clk 0:01:51]} 17. Qe2 {[%clk 0:02:38]}  Nd5 {[%clk 0:01:50]} 18. Bd2 {[%clk 0:02:38]}  Qc7 {[%clk 0:01:44]} 19. Ne5 {[%clk 0:02:32]}  bxa3 {[%clk 0:01:32]} 20. bxa3 {[%clk 0:02:31]}  Rfc8 {[%clk 0:01:32]} 21. a4 {[%clk 0:02:29]}  Bd6 {[%clk 0:01:31]} 22. f4 {[%clk 0:02:15]}  Rab8 {[%clk 0:01:24]} 23. Rfb1 {[%clk 0:02:10]}  Bxe5 {[%clk 0:01:24]} 24. Qxe5 {[%clk 0:01:59]}  Qxe5 {[%clk 0:01:21]} 25. dxe5 {[%clk 0:01:58]}  Kf8 {[%clk 0:00:57]} 26. Rb5 {[%clk 0:01:53]}  Rxb5 {[%clk 0:00:54]} 27. axb5 {[%clk 0:01:54]}  Ra8 {[%clk 0:00:54]} 28. Ra4 {[%clk 0:01:51]}  Nb6 {[%clk 0:00:52]} 29. Ra2 {[%clk 0:01:51]}  Ke7 {[%clk 0:00:48]} 30. Be3 {[%clk 0:01:51]}  Nd5 {[%clk 0:00:48]} 31. Bc5+ {[%clk 0:01:49]}  Kd7 {[%clk 0:00:48]} 32. g3 {[%clk 0:01:50]}  Nxc3 {[%clk 0:00:44]} 33. Rc2 {[%clk 0:01:49]}  Nxb5 {[%clk 0:00:44]} 34. Rxc4 {[%clk 0:01:44]}  a4 {[%clk 0:00:44]} 35. Rb4 {[%clk 0:01:43]}  Kc6 {[%clk 0:00:45]} 36. Rc4 {[%clk 0:01:40]}  Kd5 {[%clk 0:00:44]} 37. Rc1 {[%clk 0:01:36]}  a3 {[%clk 0:00:40]} 38. Bb4 {[%clk 0:01:23]}  a2 {[%clk 0:00:31]} 39. Ra1 {[%clk 0:01:22]}  Kc4 {[%clk 0:00:32]} 40. Be1 {[%clk 0:01:17]}  Nd4 {[%clk 0:00:32]} 41. Rc1+ {[%clk 0:01:14]}  Kd5 {[%clk 0:00:25]} 42. Ra1 {[%clk 0:01:01]}  Nb3 {[%clk 0:00:24]} 43. Rd1+ {[%clk 0:01:01]}  Kc6 {[%clk 0:00:24]} 44. Bc3 {[%clk 0:01:01]}  a1=Q {[%clk 0:00:23]} 45. Bxa1 {[%clk 0:00:58]}  Rxa1 {[%clk 0:00:24]} 46. Rxa1 {[%clk 0:00:58]}  Nxa1 {[%clk 0:00:25]} 47. Kf2 {[%clk 0:00:59]}  Kd5 {[%clk 0:00:26]} 48. Ke3 {[%clk 0:00:59]}  g6 {[%clk 0:00:26]} 49. g4 {[%clk 0:00:59]}  Nb3 {[%clk 0:00:27]} 50. Kf3 {[%clk 0:01:00]}  Nd4+ {[%clk 0:00:27]} 51. Kg3 {[%clk 0:01:00]}  Ke4 {[%clk 0:00:28]} 52. g5 {[%clk 0:00:59]}  Ne2+ {[%clk 0:00:27]} 53. Kh4 {[%clk 0:01:00]}  Nxf4 {[%clk 0:00:28]} 54. Kg4 {[%clk 0:01:00]}  Kxe5 {[%clk 0:00:27]} 55. h4 {[%clk 0:01:01]}  Nh5 {[%clk 0:00:27]} 56. Kf3 {[%clk 0:01:00]}  Kf5 {[%clk 0:00:27]} 57. Ke3 {[%clk 0:01:01]}  Kg4 {[%clk 0:00:27]} 58. Ke4 {[%clk 0:01:01]}  Kxh4 {[%clk 0:00:27]} 59. Ke5 {[%clk 0:01:02]}  Kxg5 {[%clk 0:00:27]} 60. Kd6 {[%clk 0:01:02]}  f5 {[%clk 0:00:27]} 61. Ke7 {[%clk 0:01:03]}  f4 {[%clk 0:00:27]} 62. Kf8 {[%clk 0:01:04]}  f3 {[%clk 0:00:28]} 63. Kg8 {[%clk 0:01:05]}  f2 {[%clk 0:00:28]} 64. Kh8 {[%clk 0:01:06]}  f1=Q {[%clk 0:00:27]} 65. Kg8 {[%clk 0:01:07]}  Qf2 {[%clk 0:00:24]} 66. Kh8 {[%clk 0:01:07]}  Qf8+ {[%clk 0:00:25]} 67. Kxh7 {[%clk 0:01:06]}  Qg7# {[%clk 0:00:25]} 0-1


[Site "https://www.chess.com"]

[Event "Titled Tuesday Blitz November 07 Late 2023"]
[White "Grigoriants, Sergey"]
[Black "Medeiros Jr, Francisco De Assis"]
[WhiteFideId "4130804"]
[BlackFideId "2114267"]
[WhiteElo "2908"]
[BlackElo "2498"]
[Result "1/2-1/2"]
[Round "4"]
[TimeControl "180+1"]
[Date "2023.11.07"]
[WhiteClock "0:00:16"]
[BlackClock "0:00:21"]
[Board "80"]

1. d4 {[%clk 0:02:55]}  d5 {[%clk 0:02:59]} 2. c4 {[%clk 0:02:56]}  e6 {[%clk 0:02:59]} 3. Nc3 {[%clk 0:02:56]}  a6 {[%clk 0:02:59]} 4. cxd5 {[%clk 0:02:46]}  exd5 {[%clk 0:03:00]} 5. Nf3 {[%clk 0:02:45]}  c6 {[%clk 0:02:59]} 6. Bf4 {[%clk 0:02:33]}  Bd6 {[%clk 0:02:59]} 7. Bg3 {[%clk 0:02:33]}  Ne7 {[%clk 0:02:55]} 8. e3 {[%clk 0:02:29]}  O-O {[%clk 0:02:56]} 9. Qb3 {[%clk 0:02:11]}  b5 {[%clk 0:02:47]} 10. Bd3 {[%clk 0:02:06]}  Bf5 {[%clk 0:02:39]} 11. Qc2 {[%clk 0:02:05]}  Bxd3 {[%clk 0:02:35]} 12. Qxd3 {[%clk 0:02:06]}  Qc7 {[%clk 0:02:36]} 13. O-O {[%clk 0:02:05]}  Bxg3 {[%clk 0:02:26]} 14. hxg3 {[%clk 0:02:04]}  Nd7 {[%clk 0:02:27]} 15. Rac1 {[%clk 0:02:04]}  Qd6 {[%clk 0:02:25]} 16. Ne2 {[%clk 0:01:55]}  Rfc8 {[%clk 0:02:14]} 17. Rfd1 {[%clk 0:01:54]}  Nf6 {[%clk 0:02:12]} 18. Rc2 {[%clk 0:01:48]}  a5 {[%clk 0:01:51]} 19. Rdc1 {[%clk 0:01:48]}  h6 {[%clk 0:01:48]} 20. Ne5 {[%clk 0:01:43]}  Nd7 {[%clk 0:01:48]} 21. Nxd7 {[%clk 0:01:40]}  Qxd7 {[%clk 0:01:49]} 22. Nf4 {[%clk 0:01:35]}  Nf5 {[%clk 0:01:44]} 23. Rc5 {[%clk 0:01:28]}  a4 {[%clk 0:01:33]} 24. Qc2 {[%clk 0:01:21]}  Ne7 {[%clk 0:01:34]} 25. Nd3 {[%clk 0:01:21]}  Ra6 {[%clk 0:01:25]} 26. Nb4 {[%clk 0:01:12]}  Rb6 {[%clk 0:01:25]} 27. b3 {[%clk 0:01:08]}  Ra8 {[%clk 0:01:21]} 28. Nxc6 {[%clk 0:01:00]}  Rxc6 {[%clk 0:01:12]} 29. Rxc6 {[%clk 0:00:59]}  Nxc6 {[%clk 0:01:11]} 30. Qxc6 {[%clk 0:01:00]}  Qxc6 {[%clk 0:01:02]} 31. Rxc6 {[%clk 0:01:01]}  axb3 {[%clk 0:01:02]} 32. axb3 {[%clk 0:01:02]}  Ra1+ {[%clk 0:01:03]} 33. Kh2 {[%clk 0:01:02]}  Rb1 {[%clk 0:01:03]} 34. Rc5 {[%clk 0:00:59]}  Rxb3 {[%clk 0:00:46]} 35. g4 {[%clk 0:00:59]}  Kf8 {[%clk 0:00:41]} 36. Rxd5 {[%clk 0:00:57]}  Ke7 {[%clk 0:00:40]} 37. Kg3 {[%clk 0:00:58]}  b4 {[%clk 0:00:37]} 38. Rb5 {[%clk 0:00:52]}  Kd6 {[%clk 0:00:36]} 39. Rb7 {[%clk 0:00:52]}  Kc6 {[%clk 0:00:34]} 40. Rxf7 {[%clk 0:00:50]}  Rd3 {[%clk 0:00:30]} 41. Rf8 {[%clk 0:00:41]}  Kb7 {[%clk 0:00:28]} 42. Rf5 {[%clk 0:00:35]}  Ka6 {[%clk 0:00:28]} 43. Rf8 {[%clk 0:00:27]}  Kb7 {[%clk 0:00:27]} 44. Rf7+ {[%clk 0:00:27]}  Kb6 {[%clk 0:00:25]} 45. Rxg7 {[%clk 0:00:25]}  b3 {[%clk 0:00:24]} 46. Rg6+ {[%clk 0:00:25]}  Kb7 {[%clk 0:00:22]} 47. Rxh6 {[%clk 0:00:26]}  Rd1 {[%clk 0:00:20]} 48. Rh7+ {[%clk 0:00:23]}  Ka6 {[%clk 0:00:20]} 49. Rh8 {[%clk 0:00:22]}  Kb7 {[%clk 0:00:20]} 50. Rh7+ {[%clk 0:00:18]}  Ka6 {[%clk 0:00:21]} 51. Rh8 {[%clk 0:00:16]}  Kb7 {[%clk 0:00:21]} 52. Rh7+ {[%clk 0:00:16]} 1/2-1/2


[Site "https://www.chess.com"]